fUST/lending_fUST_20250101
["ID","MTS","AMOUNT","RATE_DAILY","PERIOD"]
[347337044,1735703443600,-1065.74,0.00019178,2]
[347337046,1735703443609,-500.0,0.00019178,2]
[347337048,1735703443619,-193.557823,0.00019178,2]
[347337050,1735703443628,-500.48520989,0.00019178,2]
[347337052,1735703443638,-193.557823,0.00019178,2]
[347337054,1735703443647,-193.557823,0.00019178,2]
[347337056,1735703443656,-151.0,0.00019178,2]
[347337058,1735703443666,-193.557823,0.00019178,2]
[347337060,1735703443675,-151.0,0.00019178,2]
[347337062,1735703443685,-193.557823,0.00019178,2]
[347337064,1735703443695,-151.0,0.00019178,2]
[347337066,1735703443705,-193.557823,0.00019178,2]
[347337068,1735703443714,-500.0,0.00019178,2]
[347337070,1735703443724,-151.0,0.00019178,2]
[347337072,1735703443733,-193.557823,0.00019178,2]
[347337074,1735703443742,-151.0,0.00019178,2]
[347337076,1735703443751,-193.557823,0.00019178,2]
[347337078,1735703443761,-151.0,0.00019178,2]
[347337080,1735703443770,-193.557823,0.00019178,2]
[347337082,1735703443780,-151.0,0.00019178,2]
[347337084,1735703443790,-151.0,0.00019178,2]
[347337086,1735703443799,-193.557823,0.00019178,2]
[347337088,1735703443809,-193.557823,0.00019178,2]
[347337090,1735703443818,-1398.820419,0.00019178,2]
[347337092,1735703443828,-193.557823,0.00019178,2]
[347337094,1735703443837,-500.0,0.00019178,2]
[347337096,1735703443846,-151.0,0.00019178,2]
[347337098,1735703443855,-1398.820419,0.00019178,2]
[347337100,1735703443865,-193.557823,0.00019178,2]
[347337102,1735703443874,-151.0,0.00019178,2]
[347337104,1735703443883,-1398.820419,0.00019178,2]
[347337106,1735703443893,-193.557823,0.00019178,2]
[347337108,1735703443902,-500.0,0.00019178,2]
[347337110,1735703443913,-1398.820419,0.00019178,2]
[347337112,1735703443922,-193.557823,0.00019178,2]
[347337114,1735703443932,-1398.820419,0.00019178,2]
[347337116,1735703443944,-151.0,0.00019178,2]
[347337118,1735703443954,-193.557823,0.00019178,2]
[347337120,1735703443963,-1398.820419,0.00019178,2]
[347337122,1735703443972,-151.0,0.00019178,2]
[347337124,1735703443983,-500.0,0.00019178,2]
[347337126,1735703443993,-193.557823,0.00019178,2]
[347337128,1735703444003,-3656.56,0.00019178,2]
[347337130,1735703444013,-151.0,0.00019178,2]
[347337132,1735703444024,-193.557823,0.00019178,2]
[347337134,1735703444034,-1398.820419,0.00019178,2]
[347337136,1735703444043,-180.430181,0.00019178,2]
[347337138,1735703444053,-1398.820419,0.00019178,2]
[347337140,1735703444063,-554.41,0.00019178,2]
[347337142,1735703444073,-1398.820419,0.00019178,2]
[347337144,1735703444082,-1398.820419,0.00019178,2]
[347337146,1735703444092,-502.1802508,0.00019178,2]
[347337148,1735703444103,-1398.820419,0.00019178,2]
[347337150,1735703444112,-1398.820419,0.00019178,2]
[347337152,1735703444122,-1044.22,0.00019178,2]
[347337154,1735703444131,-1398.820419,0.00019178,2]
[347337156,1735703444141,-1398.820419,0.00019178,2]
[347337158,1735703444150,-1398.820419,0.00019178,2]
[347337160,1735703444160,-496.99085582,0.00019178,2]
[347337162,1735703444170,-1398.820419,0.00019178,2]
[347337164,1735703444180,-1398.820419,0.00019178,2]
[347337166,1735703444190,-500.0,0.00019178,2]
[347337168,1735703444200,-1398.820419,0.00019178,2]
[347337170,1735703444209,-284.85493781,0.00019178,2]
[347337172,1735703444218,-1398.820419,0.00019178,2]
[347337174,1735703444228,-500.0,0.00019178,2]
[347337176,1735703444237,-1398.82042861,0.00019178,2]
[347337178,1735703444246,-500.0,0.00019178,2]
[347337180,1735703444256,-500.0,0.00019178,2]
[347337182,1735703444265,-500.0,0.00019178,2]
[347337184,1735703444274,-500.0,0.00019178,2]
[347337186,1735703444284,-500.0,0.00019178,2]
[347337188,1735703444293,-500.0,0.00019178,2]
[347337190,1735703444303,-500.0,0.00019178,2]
[347337192,1735703444313,-500.0,0.00019178,2]
[347337194,1735703444323,-500.0,0.00019178,2]
[347337196,1735703444331,-586.93957439,0.00019178,2]
[347337198,1735703444341,-506.54462167,0.00019178,2]
[347337200,1735703444351,-940.78,0.00019178,2]
[347337202,1735703444361,-506.66253783,0.00019178,2]
[347337204,1735703444372,-501.05627793,0.00019178,2]
[347337206,1735703444381,-500.0,0.00019178,2]
[347337208,1735703444391,-500.0,0.00019178,2]
[347337210,1735703444400,-502.51968531,0.00019178,2]
[347337212,1735703444410,-501.17806179,0.00019178,2]
[347337214,1735703444419,-500.0,0.00019178,2]
[347337216,1735703444429,-503.68010815,0.00019178,2]
[347337218,1735703444438,-502.57039651,0.00019178,2]
[347337220,1735703444448,-500.0,0.00019178,2]
[347337222,1735703444458,-500.0,0.00019178,2]
[347337224,1735703444467,-506.43126386,0.00019178,2]
[347337226,1735703444476,-491.83980161,0.00019178,2]
[347337228,1735703444486,-152.3356,0.00019178,2]
[347337230,1735703444496,-500.0,0.00019178,2]
[347337232,1735703444505,-500.0,0.00019178,2]
[347337234,1735703444514,-500.76938425,0.00019178,2]
[347337236,1735703444524,-500.0,0.00019178,2]
[347337238,1735703444533,-598.12457698,0.00019178,2]
[347337240,1735703444543,-500.0,0.00019178,2]
[347337242,1735703444552,-500.0,0.00019178,2]
[347337244,1735703444563,-151.910075,0.00019178,2]
[347337246,1735703444572,-500.0,0.00019178,2]
[347337248,1735703444582,-500.0,0.00019178,2]
[347337250,1735703444591,-393.24830411,0.00019178,2]
[347337252,1735703444601,-659.09,0.00019178,2]
[347337254,1735703444611,-500.0,0.00019178,2]
[347337256,1735703444620,-500.0,0.00019178,2]
[347337258,1735703444629,-501.33959773,0.00019178,2]
[347337260,1735703444639,-500.0,0.00019178,2]
[347337272,1735703444738,-1288.65,0.00019178,2]
[347337274,1735703444750,-943.01,0.00019178,2]
[347337276,1735703444760,-500.0,0.00019178,2]
[347337278,1735703444769,-500.0,0.00019178,2]
[347337280,1735703444779,-500.0,0.00019178,2]
[347337282,1735703444788,-1926.65,0.00019178,2]
[347337284,1735703444797,-502.17889679,0.00019178,2]
[347337286,1735703444807,-500.0,0.00019178,2]
[347337288,1735703444817,-905.22,0.00019178,2]
[347337290,1735703444826,-501.6624221,0.00019178,2]
[347337292,1735703444836,-597.54,0.00019178,2]
[347337294,1735703444845,-503.01242397,0.00019178,2]
[347337296,1735703444854,-503.62256287,0.00019178,2]
[347337298,1735703444864,-500.0,0.00019178,2]
[347337300,1735703444873,-503.98216805,0.00019178,2]
[347337302,1735703444882,-7205.32,0.00019178,2]
[347337304,1735703444891,-503.67620017,0.00019178,2]
[347337306,1735703444902,-485.79472789,0.00019178,2]
[347337308,1735703444911,-2255.68,0.00019178,2]
[347337310,1735703444920,-2043.83,0.00019178,2]
[347337312,1735703444929,-502.11017752,0.00019178,2]
[347337314,1735703444939,-503.89914711,0.00019178,2]
[347337316,1735703444951,-500.0,0.00019178,2]
[347337318,1735703444960,-522.63023459,0.00019178,2]
[347337320,1735703444970,-2892.09,0.00019178,2]
[347337322,1735703444979,-1553.38,0.00019178,2]
[347337324,1735703444989,-500.0,0.00019178,2]
[347337326,1735703444999,-500.0,0.00019178,2]
[347337328,1735703445008,-864.2,0.00019178,2]
[347337330,1735703445018,-500.0,0.00019178,2]
[347337332,1735703445028,-530.91551116,0.00019178,2]
[347337334,1735703445037,-983.08,0.00019178,2]
[347337336,1735703445047,-500.0,0.00019178,2]
[347337338,1735703445056,-500.0,0.00019178,2]
[347337340,1735703445066,-501.57103858,0.00019178,2]
[347337342,1735703445075,-504.76453535,0.00019178,2]
[347337344,1735703445084,-44189.51,0.00019178,2]
[347337345,1735703445094,-2124.56,0.00019178,2]
[347337346,1735703445103,-500.0,0.00019178,2]
[347337347,1735703445113,-1089.42,0.00019178,2]
[347337348,1735703445123,-500.0,0.00019178,2]
[347337349,1735703445135,-502.33668359,0.00019178,2]
[347337350,1735703445144,-500.93702929,0.00019178,2]
[347337351,1735703445153,-500.0,0.00019178,2]
[347337352,1735703445162,-500.0,0.00019178,2]
[347337353,1735703445172,-150.79099233,0.00019178,2]
[347337354,1735703445181,-500.44557341,0.00019178,2]
[347337355,1735703445190,-500.60685414,0.00019178,2]
[347337356,1735703445199,-501.30575918,0.00019178,2]
[347337357,1735703445208,-1968.35,0.00019178,2]
[347337358,1735703445218,-500.0,0.00019178,2]
[347337359,1735703445227,-300.41004959,0.00019178,2]
[347337360,1735703445237,-501.36558533,0.00019178,2]
[347337361,1735703445246,-517.71,0.00019178,2]
[347337362,1735703445255,-1741.65,0.00019178,2]
[347337363,1735703445264,-500.83022297,0.00019178,2]
[347337364,1735703445274,-500.79733156,0.00019178,2]
[347337365,1735703445284,-500.0,0.00019178,2]
[347337366,1735703445293,-500.82950874,0.00019178,2]
[347337367,1735703445303,-151.377614,0.00019178,2]
[347337368,1735703445312,-2739.74,0.00019178,2]
[347337369,1735703445321,-500.0,0.00019178,2]
[347337370,1735703445331,-500.0,0.00019178,2]
[347337371,1735703445340,-503.60624858,0.00019178,2]
[347337373,1735703445350,-1748.95,0.00019178,2]
[347337375,1735703445359,-502.92109578,0.00019178,2]
[347337377,1735703445369,-500.0,0.00019178,2]
[347337379,1735703445379,-500.0,0.00019178,2]
[347337381,1735703445388,-500.0,0.00019178,2]
[347337383,1735703445399,-501.84564087,0.00019178,2]
[347337385,1735703445409,-1029.05,0.00019178,2]
[347337387,1735703445421,-500.0,0.00019178,2]
[347337389,1735703445430,-500.48350723,0.00019178,2]
[347337391,1735703445440,-500.78587698,0.00019178,2]
[347337393,1735703445450,-501.93525066,0.00019178,2]
[347337395,1735703445461,-501.67731534,0.00019178,2]
[347337397,1735703445470,-502.53170426,0.00019178,2]
[347337399,1735703445479,-500.50085005,0.00019178,2]
[347337401,1735703445489,-501.6631995,0.00019178,2]
[347337403,1735703445498,-500.0,0.00019178,2]
[347337405,1735703445508,-501.79863033,0.00019178,2]
[347337407,1735703445517,-500.92721482,0.00019178,2]
[347337409,1735703445527,-501.16324176,0.00019178,2]
[347337411,1735703445536,-514.76410279,0.00019178,2]
[347337413,1735703445545,-501.58095828,0.00019178,2]
[347337415,1735703445555,-505.21311036,0.00019178,2]
[347337417,1735703445564,-502.19437976,0.00019178,2]
[347337419,1735703445574,-500.0,0.00019178,2]
[347337421,1735703445583,-500.0,0.00019178,2]
[347337423,1735703445592,-500.0,0.00019178,2]
[347337425,1735703445602,-500.0,0.00019178,2]
[347337427,1735703445611,-501.73859358,0.00019178,2]
[347337429,1735703445621,-501.00174633,0.00019178,2]
[347337431,1735703445630,-1284.78,0.00019178,2]
[347337434,1735703445640,-500.0,0.00019178,2]
[347337435,1735703445650,-223.11743717,0.00019178,2]
[347337438,1735703445659,-503.70279704,0.00019178,2]
[347337439,1735703445669,-502.44525629,0.00019178,2]
[347337442,1735703445679,-951.28,0.00019178,2]
[347337443,1735703445688,-500.80022996,0.00019178,2]
[347337445,1735703445698,-501.85884232,0.00019178,2]
[347337447,1735703445708,-503.68167115,0.00019178,2]
[347337449,1735703445717,-500.0,0.00019178,2]
[347337451,1735703445727,-934.83,0.00019178,2]
[347337454,1735703445736,-500.0,0.00019178,2]
[347337455,1735703445745,-500.0,0.00019178,2]
[347337457,1735703445755,-513.68036594,0.00019178,2]
[347337459,1735703445764,-500.0,0.00019178,2]
[347337461,1735703445773,-501.37246887,0.00019178,2]
[347337464,1735703445784,-501.49409617,0.00019178,2]
[347337466,1735703445794,-500.0,0.00019178,2]
[347337469,1735703445803,-502.77031693,0.00019178,2]
[347337470,1735703445813,-2815.81,0.00019178,2]
[347337472,1735703445822,-500.0,0.00019178,2]
[347337474,1735703445832,-502.02167406,0.00019178,2]
[347337476,1735703445841,-500.0,0.00019178,2]
[347337478,1735703445850,-502.74147489,0.00019178,2]
[347337480,1735703445859,-500.0,0.00019178,2]
[347337482,1735703445869,-511.56374009,0.00019178,2]
[347337484,1735703445878,-501.66570955,0.00019178,2]
[347337486,1735703445888,-1082.73,0.00019178,2]
[347337488,1735703445898,-500.0,0.00019178,2]
[347337490,1735703445907,-500.0,0.00019178,2]
[347337492,1735703445917,-966.32,0.00019178,2]
[347337494,1735703445926,-501.76002226,0.00019178,2]
[347337496,1735703445936,-531.26,0.00019178,2]
[347337498,1735703445949,-504.71664072,0.00019178,2]
[347337500,1735703445959,-500.0,0.00019178,2]
[347337502,1735703445969,-1354.43,0.00019178,2]
[347337504,1735703445978,-500.0,0.00019178,2]
[347337506,1735703445989,-500.0,0.00019178,2]
[347337508,1735703445999,-500.0,0.00019178,2]
[347337510,1735703446008,-341.840284,0.00019178,2]
[347337512,1735703446019,-502.28825239,0.00019178,2]
[347337514,1735703446029,-341.840284,0.00019178,2]
[347337516,1735703446040,-341.840284,0.00019178,2]
[347337519,1735703446049,-4521.13,0.00019178,2]
[347337521,1735703446060,-500.0,0.00019178,2]
[347337532,1735703446163,-341.840284,0.00019178,2]
[347337534,1735703446172,-556.94,0.00019178,2]
[347337536,1735703446182,-341.840284,0.00019178,2]
[347337538,1735703446191,-500.0,0.00019178,2]
[347337540,1735703446200,-341.840284,0.00019178,2]
[347337542,1735703446210,-341.840284,0.00019178,2]
[347337544,1735703446219,-500.0,0.00019178,2]
[347337546,1735703446229,-341.840284,0.00019178,2]
[347337548,1735703446238,-341.840284,0.00019178,2]
[347337550,1735703446247,-341.840284,0.00019178,2]
[347337552,1735703446256,-341.840284,0.00019178,2]
[347337554,1735703446265,-341.840284,0.00019178,2]
[347337556,1735703446274,-341.840284,0.00019178,2]
[347337558,1735703446283,-500.0,0.00019178,2]
[347337560,1735703446293,-501.39222235,0.00019178,2]
[347337562,1735703446302,-341.840284,0.00019178,2]
[347337564,1735703446311,-2071.02,0.00019178,2]
[347337566,1735703446320,-341.840284,0.00019178,2]
[347337568,1735703446330,-341.840284,0.00019178,2]
[347337570,1735703446339,-341.840284,0.00019178,2]
[347337572,1735703446349,-341.840284,0.00019178,2]
[347337574,1735703446358,-500.0,0.00019178,2]
[347337576,1735703446367,-500.7165383,0.00019178,2]
[347337578,1735703446377,-500.0,0.00019178,2]
[347337580,1735703446386,-503.23090006,0.00019178,2]
[347337582,1735703446396,-341.840284,0.00019178,2]
[347337584,1735703446406,-341.840291,0.00019178,2]
[347337586,1735703446415,-504.10448184,0.00019178,2]
[347337588,1735703446424,-500.0,0.00019178,2]
[347337590,1735703446434,-503.62236731,0.00019178,2]
[347337592,1735703446443,-501.78805,0.00019178,2]
[347337594,1735703446452,-500.96796779,0.00019178,2]
[347337596,1735703446461,-1130.14,0.00019178,2]
[347337598,1735703446471,-501.45107989,0.00019178,2]
[347337600,1735703446480,-2960.38,0.00019178,2]
[347337601,1735703446489,-2788.23,0.00019178,2]
[347337602,1735703446499,-500.0,0.00019178,2]
[347337603,1735703446509,-1809.91,0.00019178,2]
[347337604,1735703446518,-501.62962424,0.00019178,2]
[347337605,1735703446527,-567.118938,0.00019178,2]
[347337606,1735703446537,-500.0,0.00019178,2]
[347337607,1735703446546,-500.0,0.00019178,2]
[347337608,1735703446555,-170.908382,0.00019178,2]
[347337609,1735703446565,-185.80231,0.00019178,2]
[347337610,1735703446575,-302.60665372,0.0001918,2]
[347337611,1735703446584,-151.0,0.000192,2]
[347337612,1735703446594,-222.162713,0.000192,2]
[347337614,1735703446603,-222.162713,0.000192,2]
[347337616,1735703446612,-151.0,0.000192,2]
[347337618,1735703446623,-170.035768,0.000192,2]
[347337619,1735703446632,-170.035759,0.000192,2]
[347337620,1735703446642,-151.0,0.000192,2]
[347337621,1735703446652,-151.0,0.000192,2]
[347337622,1735703446661,-151.0,0.000192,2]
[347337623,1735703446672,-151.0,0.000192,2]
[347337624,1735703446682,-151.0,0.000192,2]
[347337625,1735703446691,-11357.58,0.000192,2]
[347337626,1735703446700,-6254.94,0.000192,2]
[347337627,1735703446710,-2985.25,0.000192,2]
[347337628,1735703446720,-919.884247,0.000192,2]
[347337629,1735703446729,-919.884253,0.000192,2]
[347337630,1735703446738,-1026.094871,0.000192,2]
[347337631,1735703446748,-495.691518,0.000192,2]
[347337632,1735703446758,-1026.094871,0.000192,2]
[347337633,1735703446768,-495.691518,0.000192,2]
[347337634,1735703446778,-151.0,0.000192,2]
[347337635,1735703446787,-151.0,0.000192,2]
[347337636,1735703446797,-151.0,0.000192,2]
[347337637,1735703446808,-151.0,0.000192,2]
[347337638,1735703446819,-151.0,0.000192,2]
[347337639,1735703446829,-151.0,0.000192,2]
[347337640,1735703446839,-151.0,0.000192,2]
[347337641,1735703446849,-151.0,0.000192,2]
[347337642,1735703446859,-151.0,0.000192,2]
[347337643,1735703446868,-151.0,0.000192,2]
[347337644,1735703446877,-321.389409,0.000192,2]
[347337645,1735703446887,-321.389409,0.000192,2]
[347337646,1735703446896,-151.0,0.000192,2]
[347337647,1735703446906,-151.0,0.000192,2]
[347337648,1735703446916,-151.0,0.000192,2]
[347337649,1735703446926,-151.0,0.000192,2]
[347337650,1735703446936,-198.58074323,0.00019201,2]
[347337651,1735703446945,-202.098284,0.00019215,2]
[347337652,1735703446959,-202.098286,0.00019215,2]
[347337653,1735703446969,-366.313156,0.00019215,2]
[347337654,1735703446978,-151.0,0.00019215,2]
[347337655,1735703446988,-151.0,0.000193,2]
[347337656,1735703446999,-151.0,0.000193,2]
[347337657,1735703447008,-151.0,0.000193,2]
[347337658,1735703447018,-151.0,0.000193,2]
[347337659,1735703447029,-151.0,0.000193,2]
[347337660,1735703447040,-151.0,0.000193,2]
[347337661,1735703447049,-197.861662,0.00019324,2]
[347337662,1735703447058,-167.64111957,0.00019342,2]
[347337663,1735703447069,-167.64111957,0.00019342,2]
[347337664,1735703447080,-209.55139946,0.00019342,2]
[347337665,1735703447090,-167.64111958,0.00019342,2]
[347337666,1735703447099,-167.64111957,0.00019342,2]
[347337667,1735703447109,-302.60665372,0.00019349,2]
[347337668,1735703447119,-3201.22594318,0.00019354,2]
[347337669,1735703447128,-302.60665372,0.00019372,2]
[347337670,1735703447138,-151.0,0.000194,2]
[347337671,1735703447147,-151.0,0.000194,2]
[347337672,1735703447158,-151.0,0.000194,2]
[347337673,1735703447167,-151.0,0.000194,2]
[347337674,1735703447177,-151.0,0.000194,2]
[347337675,1735703447186,-151.0,0.000194,2]
[347337676,1735703447196,-151.0,0.000194,2]
[347337677,1735703447206,-151.0,0.000194,2]
[347337678,1735703447216,-151.0,0.000194,2]
[347337679,1735703447226,-151.0,0.000194,2]
[347337680,1735703447235,-151.0,0.000194,2]
[347337681,1735703447244,-151.0,0.000194,2]
[347337682,1735703447254,-209.55139946,0.00019425,2]
[347337683,1735703447263,-267.432983,0.00019434,2]
[347337684,1735703447273,-267.432983,0.00019434,2]
[347337685,1735703447282,-151.0,0.00019434,2]
[347337686,1735703447292,-151.0,0.00019452,2]
[347337687,1735703447302,-197.1403,0.00019452,2]
[347337688,1735703447311,-222.162713,0.00019452,2]
[347337689,1735703447321,-222.162711,0.00019452,2]
[347337690,1735703447331,-503.31871852,0.00019452,3]
[347337691,1735703447341,-644.67866881,0.00019452,3]
[347337692,1735703447350,-500.0,0.00019452,3]
[347337693,1735703447360,-10764.37,0.00019452,3]
[347337694,1735703447370,-563.56553968,0.00019452,3]
[347337695,1735703447470,-500.0,0.00019452,3]
[347337696,1735703447480,-503.48306795,0.00019452,3]
[347337697,1735703447490,-1888.33,0.00019452,3]
[347337698,1735703447499,-504.35260446,0.00019452,3]
[347337699,1735703447508,-500.0,0.00019452,3]
[347337700,1735703447518,-503.05279589,0.00019452,3]
[347337701,1735703447527,-500.0,0.00019452,3]
[347337702,1735703447537,-500.0,0.00019452,3]
[347337703,1735703447546,-500.0,0.00019452,3]
[347337704,1735703447555,-405.61036776,0.00019452,3]
[347337705,1735703448380,-500.0,0.0001877,2]
[347337706,1735703448397,-567.118938,0.00019178,2]
[347337707,1735703448414,-84.23145051,0.00019178,2]
[347337709,1735703450126,-151.0,0.00019177,2]
[347337710,1735703450135,-482.88748749,0.00019178,2]
[347337711,1735703450145,-567.118938,0.00019178,2]
[347337712,1735703450155,-567.118938,0.00019178,2]
[347337713,1735703450164,-567.118938,0.00019178,2]
[347337714,1735703450173,-567.118938,0.00019178,2]
[347337715,1735703450182,-567.118938,0.00019178,2]
[347337716,1735703450192,-151.0,0.00019178,2]
[347337717,1735703450201,-567.118938,0.00019178,2]
[347337718,1735703450211,-567.118938,0.00019178,2]
[347337719,1735703450220,-151.0,0.00019178,2]
[347337720,1735703450229,-567.118938,0.00019178,2]
[347337721,1735703450238,-151.0,0.00019178,2]
[347337722,1735703450247,-567.118938,0.00019178,2]
[347337723,1735703450257,-567.118938,0.00019178,2]
[347337724,1735703450266,-151.0,0.00019178,2]
[347337725,1735703450275,-567.118938,0.00019178,2]
[347337726,1735703450285,-151.0,0.00019178,2]
[347337727,1735703450294,-567.118938,0.00019178,2]
[347337728,1735703450303,-153.219176,0.00019178,2]
[347337729,1735703450312,-567.118938,0.00019178,2]
[347337730,1735703450323,-567.118938,0.00019178,2]
[347337731,1735703450332,-567.118938,0.00019178,2]
[347337732,1735703450341,-567.118938,0.00019178,2]
[347337733,1735703450351,-567.11894,0.00019178,2]
[347337734,1735703450360,-94.38963224,0.00019452,3]
[347337735,1735703450369,-500.0,0.00019452,3]
[347337736,1735703450379,-500.0,0.00019452,3]
[347337737,1735703450388,-500.0,0.00019452,3]
[347337738,1735703450397,-504.53181689,0.00019452,3]
[347337739,1735703450407,-504.35367544,0.00019452,3]
[347337740,1735703450416,-500.0,0.00019452,3]
[347337741,1735703450426,-500.75484243,0.00019452,3]
[347337742,1735703450435,-500.0,0.00019452,3]
[347337743,1735703450445,-503.44773076,0.00019452,3]
[347337744,1735703450454,-500.0,0.00019452,3]
[347337745,1735703450463,-234.42481603,0.00019452,3]
[347337746,1735703450473,-500.0,0.00019452,3]
[347337747,1735703450482,-502.19352836,0.00019452,3]
[347337748,1735703450491,-502.10553831,0.00019452,3]
[347337749,1735703450501,-507.54121013,0.00019452,3]
[347337750,1735703450510,-500.0,0.00019452,3]
[347337751,1735703450519,-194.68108411,0.00019452,3]
[347337758,1735703866878,400.0,0.00013973,2]
[347337775,1735704632157,-5000.0,0.00016958,2]
[347337776,1735704632167,-756.6198535,0.00017517,2]
[347337777,1735704632177,-274.5528116,0.00017926,2]
[347337778,1735704632187,-300.0,0.00018088,2]
[347337779,1735704632196,-213.42084093,0.00018089,2]
[347337780,1735704632299,-18118.13164527,0.00018089,2]
[347337781,1735704632309,-463.43831313,0.0001847,2]
[347337782,1735704632319,-729.962,0.0001848,2]
[347337783,1735704632328,-5164.75756255,0.00018547,2]
[347337784,1735704632344,-237.234,0.0001857,2]
[347337785,1735704632354,-352.6179867,0.00018712,2]
[347337786,1735704632363,-352.6179867,0.00018712,2]
[347337787,1735704632373,-352.6179867,0.00018712,2]
[347337788,1735704632382,-351.4406623,0.00018712,2]
[347337789,1735704632391,-150.0,0.00018753,2]
[347337790,1735704632400,-2093.0,0.00018753,2]
[347337791,1735704632409,-534.0,0.00018753,2]
[347337792,1735704632419,-2348.0,0.00018753,2]
[347337793,1735704632429,-394.0,0.00018753,2]
[347337794,1735704632439,-403.671,0.00018753,2]
[347337795,1735704632449,-280.9407414,0.000188,2]
[347337796,1735704632459,-500.0,0.0001885,2]
[347337797,1735704632468,-352.6179867,0.00019,2]
[347337798,1735704632478,-352.6179867,0.00019,2]
[347337799,1735704632487,-302.63687509,0.00019,2]
[347337800,1735704632497,-302.60665372,0.00019,2]
[347337801,1735704632506,-463.43831307,0.00019042,2]
[347337802,1735704632516,-352.6179867,0.000191,2]
[347337803,1735704632525,-159.0,0.00019161,2]
[347337804,1735704632535,-190.37,0.00019161,2]
[347337805,1735704632546,-503.86058883,0.00019173,2]
[347337806,1735704632558,-251.36724166,0.00019173,2]
[347337848,1735704638086,-2721.04205176,0.00019078,2]
[347337850,1735704638096,-249.92964632,0.00019173,2]
[347337852,1735704638106,-322.23083845,0.00019173,2]
[347337854,1735704638115,-500.0,0.00019173,2]
[347337856,1735704638125,-354.2846657,0.00019173,2]
[347337858,1735704638134,-500.0,0.00019173,2]
[347337859,1735704638143,-500.0,0.00019173,2]
[347337861,1735704638152,-500.0,0.00019173,2]
[347337863,1735704638162,-500.0,0.00019177,2]
[347337865,1735704638171,-434.15008325,0.00019177,2]
[347337867,1735704638181,-500.0,0.00019177,2]
[347337869,1735704638191,-231.94410306,0.00019177,2]
[347337871,1735704638200,-151.0,0.00019178,2]
[347337873,1735704638209,-151.0,0.00019178,2]
[347337875,1735704638218,-151.0,0.00019178,2]
[347337877,1735704638229,-151.0,0.00019178,2]
[347337879,1735704638238,-151.0,0.00019178,2]
[347337881,1735704638247,-151.0,0.00019178,2]
[347337883,1735704638256,-151.0,0.00019178,2]
[347337885,1735704638265,-151.0,0.00019178,2]
[347337887,1735704638275,-260.450956,0.00019178,2]
[347337889,1735704638284,-500.0,0.00019178,2]
[347337891,1735704638293,-506.71743847,0.00019178,2]
[347337893,1735704638302,-704.92,0.00019178,2]
[347337895,1735704638311,-500.0,0.00019178,2]
[347337897,1735704638319,-414.41690903,0.00019178,2]
[347337899,1735704638329,-500.0,0.00019178,2]
[347337901,1735704638339,-504.3882971,0.00019178,2]
[347337903,1735704638348,-198.25231518,0.00019178,2]
[347337905,1735704638357,-500.0,0.00019178,2]
[347337907,1735704638367,-569.83,0.00019178,2]
[347337909,1735704638375,-500.0,0.00019178,2]
[347337911,1735704638384,-500.0,0.00019178,2]
[347337913,1735704638393,-500.0,0.00019178,2]
[347337915,1735704638402,-539.55,0.00019178,2]
[347337917,1735704638412,-504.13056782,0.00019178,2]
[347337919,1735704638421,-507.00939028,0.00019178,2]
[347337921,1735704638431,-550.81,0.00019178,2]